[Event "Titled Tuesday Blitz March 08 Early 2022"]
[White "Agasarov, Benik"]
[Black "Levine, David"]
[WhiteFideId "13314823"]
[BlackFideId "2011611"]
[WhiteElo "2562"]
[BlackElo "2168"]
[Result "1-0"]
[Round "01"]
[TimeControl "180+1"]
[Date "2022.03.09"]
[WhiteClock "0:02:04"]
[BlackClock "0:01:44"]

1. e4 {[%clk 0:02:52]}  e5 {[%clk 0:01:56]} 2. Nc3 {[%clk 0:02:53]}  Nf6 {[%clk 0:01:55]} 3. Bc4 {[%clk 0:02:47]}  Nxe4 {[%clk 0:01:53]} 4. Qh5 {[%clk 0:02:45]}  Nd6 {[%clk 0:01:53]} 5. Bb3 {[%clk 0:02:43]}  Be7 {[%clk 0:01:54]} 6. Nf3 {[%clk 0:02:37]}  O-O {[%clk 0:01:53]} 7. Nxe5 {[%clk 0:02:36]}  Bf6 {[%clk 0:01:52]} 8. O-O {[%clk 0:02:34]}  g6 {[%clk 0:01:50]} 9. Qe2 {[%clk 0:02:19]}  Re8 {[%clk 0:01:48]} 10. d4 {[%clk 0:02:13]}  Kg7 {[%clk 0:01:44]} 11. Be3 {[%clk 0:02:06]}  Nf5 {[%clk 0:01:44]} 12. Nxf7 {[%clk 0:02:04]}  Re7 {[%clk 0:01:44]} 13. Nxd8 {[%clk 0:02:04]} 1-0


[Site "https://www.chess.com"]

[Event "Titled Tuesday Blitz March 08 Early 2022"]
[White "Aggelis, Nikolaos"]
[Black "Dubov, Daniil"]
[WhiteFideId "4213220"]
[BlackFideId "24126055"]
[WhiteElo "2154"]
[BlackElo "2791"]
[Result "0-1"]
[Round "01"]
[TimeControl "180+1"]
[Date "2022.03.08"]
[WhiteClock "0:00:01"]
[BlackClock "0:00:13"]

1. d4 {[%clk 0:02:59]}  Nf6 {[%clk 0:02:59]} 2. g3 {[%clk 0:02:59]}  c5 {[%clk 0:02:55]} 3. Nf3 {[%clk 0:02:48]}  cxd4 {[%clk 0:02:53]} 4. Nxd4 {[%clk 0:02:49]}  e5 {[%clk 0:02:48]} 5. Nb3 {[%clk 0:02:49]}  d5 {[%clk 0:02:43]} 6. Bg2 {[%clk 0:02:49]}  Nc6 {[%clk 0:02:35]} 7. O-O {[%clk 0:02:49]}  Be6 {[%clk 0:02:31]} 8. f4 {[%clk 0:02:43]}  exf4 {[%clk 0:02:15]} 9. gxf4 {[%clk 0:02:43]}  g6 {[%clk 0:02:05]} 10. Kh1 {[%clk 0:02:40]}  Bg7 {[%clk 0:02:03]} 11. Nc3 {[%clk 0:02:40]}  O-O {[%clk 0:02:03]} 12. f5 {[%clk 0:02:40]}  Bxf5 {[%clk 0:02:01]} 13. Bg5 {[%clk 0:02:31]}  d4 {[%clk 0:02:01]} 14. Bxf6 {[%clk 0:02:27]}  Bxf6 {[%clk 0:01:55]} 15. Nd5 {[%clk 0:02:14]}  Be5 {[%clk 0:01:55]} 16. Qe1 {[%clk 0:01:56]}  Bxc2 {[%clk 0:01:31]} 17. Nc5 {[%clk 0:01:53]}  Rb8 {[%clk 0:01:16]} 18. Rc1 {[%clk 0:01:50]}  Bf5 {[%clk 0:01:16]} 19. e4 {[%clk 0:01:39]}  Be6 {[%clk 0:01:09]} 20. b3 {[%clk 0:01:23]}  Kg7 {[%clk 0:01:07]} 21. Nxb7 {[%clk 0:01:21]}  Rxb7 {[%clk 0:01:06]} 22. Rxc6 {[%clk 0:01:22]}  Qg5 {[%clk 0:00:59]} 23. Qf2 {[%clk 0:00:58]}  Rc8 {[%clk 0:00:54]} 24. Rxc8 {[%clk 0:00:46]}  Bxc8 {[%clk 0:00:53]} 25. Qf3 {[%clk 0:00:31]}  Be6 {[%clk 0:00:49]} 26. h3 {[%clk 0:00:30]}  Rb8 {[%clk 0:00:44]} 27. Nf4 {[%clk 0:00:24]}  Qxf4 {[%clk 0:00:42]} 28. Qxf4 {[%clk 0:00:24]}  Bxf4 {[%clk 0:00:42]} 29. Rxf4 {[%clk 0:00:25]}  Rd8 {[%clk 0:00:39]} 30. Rf2 {[%clk 0:00:24]}  d3 {[%clk 0:00:38]} 31. Rd2 {[%clk 0:00:25]}  Kf6 {[%clk 0:00:37]} 32. Kg1 {[%clk 0:00:25]}  Ke5 {[%clk 0:00:37]} 33. Kf2 {[%clk 0:00:24]}  Kd4 {[%clk 0:00:36]} 34. Bf1 {[%clk 0:00:20]}  Kxe4 {[%clk 0:00:35]} 35. Rd1 {[%clk 0:00:19]}  Bf5 {[%clk 0:00:31]} 36. Bg2+ {[%clk 0:00:12]}  Kf4 {[%clk 0:00:31]} 37. Bf1 {[%clk 0:00:13]}  g5 {[%clk 0:00:27]} 38. b4 {[%clk 0:00:10]}  Rd4 {[%clk 0:00:24]} 39. b5 {[%clk 0:00:09]}  Rb4 {[%clk 0:00:18]} 40. Bxd3 {[%clk 0:00:09]}  Bxd3 {[%clk 0:00:18]} 41. Rxd3 {[%clk 0:00:10]}  Rb2+ {[%clk 0:00:17]} 42. Kg1 {[%clk 0:00:08]}  Rxb5 {[%clk 0:00:17]} 43. Rd7 {[%clk 0:00:08]}  f5 {[%clk 0:00:17]} 44. Rxa7 {[%clk 0:00:08]}  h5 {[%clk 0:00:15]} 45. Ra4+ {[%clk 0:00:03]}  Kg3 {[%clk 0:00:15]} 46. Ra3+ {[%clk 0:00:03]}  Kh4 {[%clk 0:00:15]} 47. Kg2 {[%clk 0:00:03]}  Rb2+ {[%clk 0:00:14]} 48. Kg1 {[%clk 0:00:04]}  g4 {[%clk 0:00:12]} 49. hxg4 {[%clk 0:00:03]}  hxg4 {[%clk 0:00:13]} 50. Ra8 {[%clk 0:00:03]}  f4 {[%clk 0:00:13]} 51. a4 {[%clk 0:00:03]}  Kg3 {[%clk 0:00:13]} 52. Kf1 {[%clk 0:00:02]}  f3 {[%clk 0:00:13]} 53. Re8 {[%clk 0:00:01]}  Rb1+ {[%clk 0:00:13]} 0-1


[Site "https://www.chess.com"]

[Event "Titled Tuesday Blitz March 08 Early 2022"]
[White "Alavi, Sayed Javad"]
[Black "Yandarbiev, Ruslan"]
[WhiteFideId "12500607"]
[BlackFideId "4115023"]
[WhiteElo "2475"]
[BlackElo "2102"]
[Result "1-0"]
[Round "01"]
[TimeControl "180+1"]
[Date "2022.03.09"]
[WhiteClock "0:00:30"]
[BlackClock "0:00:08"]

1. d4 {[%clk 0:02:41]}  Nf6 {[%clk 0:02:59]} 2. Nf3 {[%clk 0:02:40]}  g6 {[%clk 0:03:00]} 3. g3 {[%clk 0:02:38]}  Bg7 {[%clk 0:03:01]} 4. Bg2 {[%clk 0:02:39]}  O-O {[%clk 0:03:02]} 5. O-O {[%clk 0:02:39]}  d6 {[%clk 0:03:03]} 6. c4 {[%clk 0:02:39]}  Nbd7 {[%clk 0:03:04]} 7. Nc3 {[%clk 0:02:39]}  e5 {[%clk 0:03:05]} 8. e4 {[%clk 0:02:39]}  c6 {[%clk 0:03:05]} 9. h3 {[%clk 0:02:39]}  Re8 {[%clk 0:03:06]} 10. Be3 {[%clk 0:02:34]}  a5 {[%clk 0:03:04]} 11. d5 {[%clk 0:02:25]}  Nc5 {[%clk 0:03:03]} 12. Nd2 {[%clk 0:02:20]}  Bd7 {[%clk 0:03:01]} 13. dxc6 {[%clk 0:02:06]}  Bxc6 {[%clk 0:02:57]} 14. Qc2 {[%clk 0:02:02]}  Ne6 {[%clk 0:02:47]} 15. Qd3 {[%clk 0:01:57]}  a4 {[%clk 0:02:28]} 16. b4 {[%clk 0:01:53]}  axb3 {[%clk 0:02:23]} 17. axb3 {[%clk 0:01:54]}  Nd4 {[%clk 0:02:14]} 18. b4 {[%clk 0:01:45]}  Nd7 {[%clk 0:01:58]} 19. f4 {[%clk 0:01:35]}  Rxa1 {[%clk 0:01:47]} 20. Rxa1 {[%clk 0:01:36]}  Nf8 {[%clk 0:01:43]} 21. Bxd4 {[%clk 0:01:28]}  exd4 {[%clk 0:01:43]} 22. Nd5 {[%clk 0:01:28]}  b5 {[%clk 0:01:10]} 23. Ra6 {[%clk 0:01:10]}  bxc4 {[%clk 0:00:51]} 24. Qxc4 {[%clk 0:01:06]}  Bxd5 {[%clk 0:00:46]} 25. Qxd5 {[%clk 0:01:07]}  Qc7 {[%clk 0:00:23]} 26. Nc4 {[%clk 0:00:58]}  d3 {[%clk 0:00:18]} 27. Nxd6 {[%clk 0:00:48]}  Rd8 {[%clk 0:00:17]} 28. Qxd3 {[%clk 0:00:45]}  Ne6 {[%clk 0:00:15]} 29. e5 {[%clk 0:00:44]}  Bf8 {[%clk 0:00:14]} 30. Kh2 {[%clk 0:00:41]}  h5 {[%clk 0:00:11]} 31. h4 {[%clk 0:00:40]}  Ng7 {[%clk 0:00:11]} 32. Bd5 {[%clk 0:00:38]}  Ne6 {[%clk 0:00:11]} 33. Bxe6 {[%clk 0:00:37]}  fxe6 {[%clk 0:00:11]} 34. Qxg6+ {[%clk 0:00:38]}  Qg7 {[%clk 0:00:09]} 35. Qxe6+ {[%clk 0:00:33]}  Kh7 {[%clk 0:00:09]} 36. Qf5+ {[%clk 0:00:32]}  Kh8 {[%clk 0:00:08]} 37. Nf7+ {[%clk 0:00:30]} 1-0


[Site "https://www.chess.com"]

[Event "Titled Tuesday Blitz March 08 Early 2022"]
[White "Alinasab, Mobina"]
[Black "Gulecyuz, Deniz"]
[WhiteFideId "12528897"]
[BlackFideId "30921341"]
[WhiteElo "2052"]
[BlackElo "1923"]
[Result "1-0"]
[Round "01"]
[TimeControl "180+1"]
[Date "2022.03.09"]
[WhiteClock "0:02:00"]
[BlackClock "0:00:19"]

1. e4 {[%clk 0:02:58]}  c5 {[%clk 0:02:58]} 2. Nf3 {[%clk 0:02:58]}  Nc6 {[%clk 0:02:58]} 3. d4 {[%clk 0:02:59]}  cxd4 {[%clk 0:02:58]} 4. Nxd4 {[%clk 0:03:00]}  Nf6 {[%clk 0:02:59]} 5. Nc3 {[%clk 0:03:00]}  e5 {[%clk 0:02:59]} 6. Ndb5 {[%clk 0:03:00]}  d6 {[%clk 0:03:00]} 7. Bg5 {[%clk 0:03:00]}  a6 {[%clk 0:03:00]} 8. Na3 {[%clk 0:03:00]}  b5 {[%clk 0:03:00]} 9. Bxf6 {[%clk 0:03:01]}  gxf6 {[%clk 0:03:00]} 10. Nd5 {[%clk 0:03:02]}  Bg7 {[%clk 0:03:01]} 11. Bd3 {[%clk 0:03:01]}  Ne7 {[%clk 0:02:49]} 12. c4 {[%clk 0:02:56]}  Nxd5 {[%clk 0:02:42]} 13. cxd5 {[%clk 0:02:53]}  f5 {[%clk 0:02:36]} 14. O-O {[%clk 0:02:46]}  fxe4 {[%clk 0:02:29]} 15. Bxe4 {[%clk 0:02:46]}  O-O {[%clk 0:02:24]} 16. Qh5 {[%clk 0:02:38]}  f5 {[%clk 0:02:23]} 17. Bc2 {[%clk 0:02:36]}  e4 {[%clk 0:01:43]} 18. Rab1 {[%clk 0:02:35]}  Qe8 {[%clk 0:01:29]} 19. Qxe8 {[%clk 0:02:25]}  Rxe8 {[%clk 0:01:30]} 20. Bb3 {[%clk 0:02:22]}  f4 {[%clk 0:01:24]} 21. Nc2 {[%clk 0:02:21]}  e3 {[%clk 0:01:16]} 22. fxe3 {[%clk 0:02:22]}  fxe3 {[%clk 0:01:17]} 23. Rbe1 {[%clk 0:02:17]}  Bxb2 {[%clk 0:01:10]} 24. Rf3 {[%clk 0:02:14]}  e2 {[%clk 0:00:47]} 25. Rf2 {[%clk 0:02:11]}  Bg4 {[%clk 0:00:39]} 26. h3 {[%clk 0:02:11]}  Bh5 {[%clk 0:00:36]} 27. g4 {[%clk 0:02:10]}  Bg6 {[%clk 0:00:37]} 28. Rfxe2 {[%clk 0:02:06]}  Rxe2 {[%clk 0:00:21]} 29. Rxe2 {[%clk 0:02:07]}  Rc8 {[%clk 0:00:21]} 30. Nb4 {[%clk 0:02:01]}  a5 {[%clk 0:00:19]} 31. Nc6 {[%clk 0:02:00]}  a4 {[%clk 0:00:20]} 32. Ne7+ {[%clk 0:02:00]}  Kf7 {[%clk 0:00:19]} 33. Nxc8 {[%clk 0:02:01]}  axb3 {[%clk 0:00:19]} 34. Nxd6+ {[%clk 0:02:01]}  Kf6 {[%clk 0:00:19]} 35. Rxb2 {[%clk 0:02:00]} 1-0


[Site "https://www.chess.com"]

[Event "Titled Tuesday Blitz March 08 Early 2022"]
[White "Ambartsumova, Karina"]
[Black "Zanette, Edgard Vinicius"]
[WhiteFideId "4166299"]
[BlackFideId "2109263"]
[WhiteElo "2262"]
[BlackElo "2182"]
[Result "1-0"]
[Round "01"]
[TimeControl "180+1"]
[Date "2022.03.09"]
[WhiteClock "0:00:09"]
[BlackClock "0:00:02"]

1. e4 {[%clk 0:02:56]}  e5 {[%clk 0:02:59]} 2. Nf3 {[%clk 0:02:56]}  Nc6 {[%clk 0:03:00]} 3. Bc4 {[%clk 0:02:54]}  Bc5 {[%clk 0:02:59]} 4. O-O {[%clk 0:02:54]}  Nf6 {[%clk 0:02:59]} 5. d4 {[%clk 0:02:53]}  Bxd4 {[%clk 0:02:59]} 6. Nxd4 {[%clk 0:02:51]}  Nxd4 {[%clk 0:03:00]} 7. Bg5 {[%clk 0:02:49]}  h6 {[%clk 0:02:58]} 8. f4 {[%clk 0:02:48]}  d6 {[%clk 0:02:46]} 9. Bh4 {[%clk 0:02:34]}  Be6 {[%clk 0:02:34]} 10. Na3 {[%clk 0:02:07]}  Qe7 {[%clk 0:02:08]} 11. c3 {[%clk 0:01:37]}  Nc6 {[%clk 0:02:04]} 12. f5 {[%clk 0:01:21]}  Bxc4 {[%clk 0:02:02]} 13. Nxc4 {[%clk 0:01:22]}  O-O-O {[%clk 0:02:01]} 14. b4 {[%clk 0:01:21]}  d5 {[%clk 0:01:57]} 15. exd5 {[%clk 0:01:17]}  Qe8 {[%clk 0:01:30]} 16. Ne3 {[%clk 0:01:12]}  Ne7 {[%clk 0:01:12]} 17. c4 {[%clk 0:01:10]}  c6 {[%clk 0:01:04]} 18. Qa4 {[%clk 0:00:50]}  Kb8 {[%clk 0:00:55]} 19. Bg3 {[%clk 0:00:44]}  cxd5 {[%clk 0:00:45]} 20. Bxe5+ {[%clk 0:00:45]}  Ka8 {[%clk 0:00:46]} 21. Qa3 {[%clk 0:00:40]}  d4 {[%clk 0:00:41]} 22. Nd1 {[%clk 0:00:20]}  Nc6 {[%clk 0:00:36]} 23. Bg3 {[%clk 0:00:19]}  Ne4 {[%clk 0:00:35]} 24. b5 {[%clk 0:00:19]}  Nxg3 {[%clk 0:00:35]} 25. Qxg3 {[%clk 0:00:20]}  Ne5 {[%clk 0:00:33]} 26. Nb2 {[%clk 0:00:20]}  f6 {[%clk 0:00:28]} 27. Rad1 {[%clk 0:00:20]}  Qf7 {[%clk 0:00:26]} 28. Qb3 {[%clk 0:00:19]}  d3 {[%clk 0:00:24]} 29. Nxd3 {[%clk 0:00:19]}  Qxc4 {[%clk 0:00:16]} 30. Qxc4 {[%clk 0:00:14]}  Nxc4 {[%clk 0:00:16]} 31. Nc5 {[%clk 0:00:12]}  b6 {[%clk 0:00:16]} 32. Ne6 {[%clk 0:00:11]}  Rdg8 {[%clk 0:00:09]} 33. Rd7 {[%clk 0:00:11]}  Ne5 {[%clk 0:00:10]} 34. Re7 {[%clk 0:00:11]}  Nd3 {[%clk 0:00:07]} 35. Rd1 {[%clk 0:00:10]}  Nc5 {[%clk 0:00:07]} 36. Nxc5 {[%clk 0:00:10]}  bxc5 {[%clk 0:00:07]} 37. Rdd7 {[%clk 0:00:11]}  Rd8 {[%clk 0:00:07]} 38. Rxa7+ {[%clk 0:00:11]}  Kb8 {[%clk 0:00:08]} 39. Reb7+ {[%clk 0:00:12]}  Kc8 {[%clk 0:00:08]} 40. Rc7+ {[%clk 0:00:11]}  Kb8 {[%clk 0:00:08]} 41. b6 {[%clk 0:00:09]}  Rd1+ {[%clk 0:00:06]} 42. Kf2 {[%clk 0:00:09]}  Rhd8 {[%clk 0:00:06]} 43. Rcb7+ {[%clk 0:00:08]}  Kc8 {[%clk 0:00:06]} 44. Rc7+ {[%clk 0:00:08]}  Kb8 {[%clk 0:00:07]} 45. h3 {[%clk 0:00:06]}  R1d2+ {[%clk 0:00:05]} 46. Kg3 {[%clk 0:00:05]}  R8d3+ {[%clk 0:00:04]} 47. Kh2 {[%clk 0:00:05]}  Rd8 {[%clk 0:00:03]} 48. Rxg7 {[%clk 0:00:05]}  c4 {[%clk 0:00:03]} 49. Rab7+ {[%clk 0:00:06]}  Ka8 {[%clk 0:00:03]} 50. Rbc7 {[%clk 0:00:06]}  Rb2 {[%clk 0:00:02]} 51. b7+ {[%clk 0:00:05]}  Kb8 {[%clk 0:00:02]} 52. Rxc4 {[%clk 0:00:05]}  Rxb7 {[%clk 0:00:02]} 53. Rxb7+ {[%clk 0:00:06]}  Kxb7 {[%clk 0:00:03]} 54. Rh4 {[%clk 0:00:07]}  Kc6 {[%clk 0:00:04]} 55. Rxh6 {[%clk 0:00:07]}  Rd6 {[%clk 0:00:05]} 56. Rg6 {[%clk 0:00:07]}  Kd5 {[%clk 0:00:05]} 57. h4 {[%clk 0:00:07]}  Ke4 {[%clk 0:00:06]} 58. Rg3 {[%clk 0:00:04]}  Kxf5 {[%clk 0:00:07]} 59. a4 {[%clk 0:00:04]}  Rd4 {[%clk 0:00:06]} 60. Ra3 {[%clk 0:00:04]}  Rxh4+ {[%clk 0:00:07]} 61. Kg3 {[%clk 0:00:04]}  Rg4+ {[%clk 0:00:07]} 62. Kh3 {[%clk 0:00:05]}  Rg8 {[%clk 0:00:06]} 63. a5 {[%clk 0:00:05]}  Ra8 {[%clk 0:00:07]} 64. a6 {[%clk 0:00:05]}  Ra7 {[%clk 0:00:07]} 65. Kg3 {[%clk 0:00:05]}  Kg5 {[%clk 0:00:07]} 66. Ra5+ {[%clk 0:00:05]}  f5 {[%clk 0:00:07]} 67. Kf3 {[%clk 0:00:06]}  Kf6 {[%clk 0:00:07]} 68. Kf4 {[%clk 0:00:06]}  Ke6 {[%clk 0:00:07]} 69. g3 {[%clk 0:00:06]}  Kd6 {[%clk 0:00:06]} 70. Kxf5 {[%clk 0:00:06]}  Kc6 {[%clk 0:00:05]} 71. g4 {[%clk 0:00:06]}  Kb6 {[%clk 0:00:06]} 72. Ra1 {[%clk 0:00:07]}  Rf7+ {[%clk 0:00:05]} 73. Kg6 {[%clk 0:00:07]}  Rf4 {[%clk 0:00:05]} 74. g5 {[%clk 0:00:08]}  Ka7 {[%clk 0:00:04]} 75. Kh6 {[%clk 0:00:07]}  Rh4+ {[%clk 0:00:03]} 76. Kg7 {[%clk 0:00:07]}  Rg4 {[%clk 0:00:03]} 77. g6 {[%clk 0:00:08]}  Rb4 {[%clk 0:00:04]} 78. Kh7 {[%clk 0:00:08]}  Rh4+ {[%clk 0:00:04]} 79. Kg8 {[%clk 0:00:08]}  Rh2 {[%clk 0:00:04]} 80. g7 {[%clk 0:00:08]}  Rf2 {[%clk 0:00:04]} 81. Rh1 {[%clk 0:00:08]}  Rc2 {[%clk 0:00:02]} 82. Kh8 {[%clk 0:00:09]} 1-0


[Site "https://www.chess.com"]

[Event "Titled Tuesday Blitz March 08 Early 2022"]
[White "Atakhan, Abtin"]
[Black "Sarkar, Justin"]
[WhiteFideId "22502203"]
[BlackFideId "2010011"]
[WhiteElo "2119"]
[BlackElo "2038"]
[Result "0-1"]
[Round "01"]
[TimeControl "180+1"]
[Date "2022.03.09"]
[WhiteClock "0:00:47"]
[BlackClock "0:00:09"]

1. d4 {[%clk 0:03:00]}  Nf6 {[%clk 0:02:56]} 2. c4 {[%clk 0:02:59]}  e6 {[%clk 0:02:54]} 3. g3 {[%clk 0:02:58]}  Bb4+ {[%clk 0:02:39]} 4. Bd2 {[%clk 0:02:58]}  a5 {[%clk 0:02:36]} 5. Bg2 {[%clk 0:02:57]}  O-O {[%clk 0:02:34]} 6. Nf3 {[%clk 0:02:58]}  d5 {[%clk 0:02:23]} 7. Qc2 {[%clk 0:02:57]}  b6 {[%clk 0:02:13]} 8. O-O {[%clk 0:02:52]}  dxc4 {[%clk 0:02:07]} 9. Bxb4 {[%clk 0:02:50]}  axb4 {[%clk 0:02:05]} 10. Qxc4 {[%clk 0:02:46]}  Ba6 {[%clk 0:01:58]} 11. Qc2 {[%clk 0:02:46]}  b3 {[%clk 0:01:48]} 12. axb3 {[%clk 0:02:34]}  Bd3 {[%clk 0:01:41]} 13. Qxd3 {[%clk 0:02:31]}  Rxa1 {[%clk 0:01:41]} 14. e4 {[%clk 0:02:26]}  c5 {[%clk 0:01:31]} 15. e5 {[%clk 0:02:23]}  Nd5 {[%clk 0:01:19]} 16. Nc3 {[%clk 0:02:12]}  Rxf1+ {[%clk 0:01:17]} 17. Bxf1 {[%clk 0:02:09]}  cxd4 {[%clk 0:01:16]} 18. Nxd4 {[%clk 0:02:03]}  Nb4 {[%clk 0:00:50]} 19. Qc4 {[%clk 0:02:00]}  Qe7 {[%clk 0:00:48]} 20. Ncb5 {[%clk 0:01:52]}  Qc5 {[%clk 0:00:43]} 21. Qe2 {[%clk 0:01:50]}  Rd8 {[%clk 0:00:37]} 22. Qg4 {[%clk 0:01:41]}  Nd7 {[%clk 0:00:26]} 23. Nf3 {[%clk 0:01:28]}  Nc6 {[%clk 0:00:21]} 24. Qh4 {[%clk 0:01:06]}  Ndxe5 {[%clk 0:00:16]} 25. Be2 {[%clk 0:00:48]}  Nxf3+ {[%clk 0:00:12]} 26. Bxf3 {[%clk 0:00:48]}  Qxb5 {[%clk 0:00:10]} 27. Bxc6 {[%clk 0:00:47]}  Rd1+ {[%clk 0:00:09]} 28. Kg2 {[%clk 0:00:47]}  Qxc6+ {[%clk 0:00:09]} 0-1


[Site "https://www.chess.com"]

[Event "Titled Tuesday Blitz March 08 Early 2022"]
[White "Baches Garcia, Guillermo"]
[Black "Cabarkapa, Novak"]
[WhiteFideId "2209764"]
[BlackFideId "943746"]
[WhiteElo "2403"]
[BlackElo "2443"]
[Result "1-0"]
[Round "01"]
[TimeControl "180+1"]
[Date "2022.03.09"]
[WhiteClock "0:01:35"]
[BlackClock "0:01:38"]

1. e4 {[%clk 0:03:00]}  e6 {[%clk 0:02:56]} 2. Nf3 {[%clk 0:03:00]}  g5 {[%clk 0:02:53]} 3. d4 {[%clk 0:02:56]}  g4 {[%clk 0:02:53]} 4. Ne5 {[%clk 0:02:51]}  h5 {[%clk 0:02:53]} 5. h3 {[%clk 0:02:42]}  d6 {[%clk 0:02:52]} 6. Nd3 {[%clk 0:02:38]}  g3 {[%clk 0:02:47]} 7. fxg3 {[%clk 0:02:34]}  Nc6 {[%clk 0:02:44]} 8. Be3 {[%clk 0:02:24]}  Nf6 {[%clk 0:02:42]} 9. Nc3 {[%clk 0:02:11]}  d5 {[%clk 0:02:38]} 10. e5 {[%clk 0:02:05]}  Nd7 {[%clk 0:02:35]} 11. Qf3 {[%clk 0:01:53]}  Nb6 {[%clk 0:02:29]} 12. Nf4 {[%clk 0:01:48]}  Be7 {[%clk 0:01:40]} 13. Nxh5 {[%clk 0:01:42]}  Rg8 {[%clk 0:01:38]} 14. Bb5 {[%clk 0:01:35]}  Bd7 {[%clk 0:01:38]} 15. O-O {[%clk 0:01:35]} 1-0


[Site "https://www.chess.com"]

[Event "Titled Tuesday Blitz March 08 Early 2022"]
[White "Batsiashvili, Nino"]
[Black "Zhu, Jiner"]
[WhiteFideId "13602993"]
[BlackFideId "8608059"]
[WhiteElo "2192"]
[BlackElo "2281"]
[Result "0-1"]
[Round "01"]
[TimeControl "180+1"]
[Date "2022.03.08"]
[WhiteClock "0:00:13"]
[BlackClock "0:00:11"]

1. d4 {[%clk 0:03:00]}  Nf6 {[%clk 0:02:58]} 2. c4 {[%clk 0:03:00]}  g6 {[%clk 0:02:58]} 3. Nc3 {[%clk 0:03:00]}  d5 {[%clk 0:02:58]} 4. cxd5 {[%clk 0:03:01]}  Nxd5 {[%clk 0:02:59]} 5. e4 {[%clk 0:03:02]}  Nxc3 {[%clk 0:03:00]} 6. bxc3 {[%clk 0:03:03]}  c5 {[%clk 0:03:00]} 7. Nf3 {[%clk 0:03:03]}  Bg7 {[%clk 0:03:00]} 8. h3 {[%clk 0:03:03]}  O-O {[%clk 0:02:54]} 9. Be3 {[%clk 0:03:03]}  Qa5 {[%clk 0:02:34]} 10. Qd2 {[%clk 0:02:54]}  Nc6 {[%clk 0:02:16]} 11. Rd1 {[%clk 0:02:47]}  cxd4 {[%clk 0:02:01]} 12. cxd4 {[%clk 0:02:47]}  Qxd2+ {[%clk 0:02:01]} 13. Rxd2 {[%clk 0:02:48]}  e6 {[%clk 0:01:47]} 14. Be2 {[%clk 0:02:39]}  Bd7 {[%clk 0:01:46]} 15. O-O {[%clk 0:02:29]}  Rac8 {[%clk 0:01:40]} 16. Rb1 {[%clk 0:02:26]}  Na5 {[%clk 0:01:27]} 17. d5 {[%clk 0:02:24]}  b6 {[%clk 0:01:20]} 18. d6 {[%clk 0:02:16]}  Nc4 {[%clk 0:01:19]} 19. Bxc4 {[%clk 0:02:16]}  Rxc4 {[%clk 0:01:20]} 20. e5 {[%clk 0:02:14]}  h6 {[%clk 0:01:11]} 21. Kf1 {[%clk 0:02:00]}  Rfc8 {[%clk 0:01:07]} 22. Ke2 {[%clk 0:02:00]}  Kf8 {[%clk 0:01:01]} 23. g3 {[%clk 0:01:47]}  Bc6 {[%clk 0:00:51]} 24. h4 {[%clk 0:01:33]}  Ke8 {[%clk 0:00:47]} 25. Nd4 {[%clk 0:01:18]}  Bxe5 {[%clk 0:00:30]} 26. Nxc6 {[%clk 0:01:18]}  R8xc6 {[%clk 0:00:31]} 27. d7+ {[%clk 0:01:18]}  Kd8 {[%clk 0:00:31]} 28. Bxh6 {[%clk 0:01:19]}  Rd4 {[%clk 0:00:26]} 29. Rbd1 {[%clk 0:01:12]}  Rxd2+ {[%clk 0:00:20]} 30. Rxd2 {[%clk 0:01:13]}  Rd6 {[%clk 0:00:20]} 31. g4 {[%clk 0:01:04]}  Kxd7 {[%clk 0:00:19]} 32. h5 {[%clk 0:01:04]}  gxh5 {[%clk 0:00:19]} 33. gxh5 {[%clk 0:01:04]}  Rxd2+ {[%clk 0:00:19]} 34. Bxd2 {[%clk 0:01:05]}  Ke7 {[%clk 0:00:19]} 35. Kf3 {[%clk 0:00:58]}  f5 {[%clk 0:00:19]} 36. Bg5+ {[%clk 0:00:50]}  Kf7 {[%clk 0:00:19]} 37. a4 {[%clk 0:00:49]}  a6 {[%clk 0:00:19]} 38. Ke3 {[%clk 0:00:48]}  b5 {[%clk 0:00:20]} 39. axb5 {[%clk 0:00:49]}  axb5 {[%clk 0:00:21]} 40. Kd3 {[%clk 0:00:49]}  Bf6 {[%clk 0:00:20]} 41. Be3 {[%clk 0:00:45]}  e5 {[%clk 0:00:18]} 42. Kc3 {[%clk 0:00:41]}  Be7 {[%clk 0:00:18]} 43. Bb6 {[%clk 0:00:34]}  Kg7 {[%clk 0:00:18]} 44. Bc7 {[%clk 0:00:33]}  e4 {[%clk 0:00:17]} 45. Bf4 {[%clk 0:00:32]}  Bc5 {[%clk 0:00:18]} 46. Bg3 {[%clk 0:00:13]}  Kh6 {[%clk 0:00:17]} 47. Kd2 {[%clk 0:00:13]}  Kxh5 {[%clk 0:00:17]} 48. Ke2 {[%clk 0:00:14]}  Kg4 {[%clk 0:00:17]} 49. Bc7 {[%clk 0:00:13]}  b4 {[%clk 0:00:17]} 50. Be5 {[%clk 0:00:13]}  f4 {[%clk 0:00:17]} 51. Bb2 {[%clk 0:00:13]}  Kf5 {[%clk 0:00:16]} 52. Kf1 {[%clk 0:00:13]}  Ke6 {[%clk 0:00:16]} 53. Ke2 {[%clk 0:00:13]}  Kd5 {[%clk 0:00:15]} 54. f3 {[%clk 0:00:14]}  e3 {[%clk 0:00:12]} 55. Kd3 {[%clk 0:00:14]}  Bd6 {[%clk 0:00:12]} 56. Bf6 {[%clk 0:00:12]}  Be5 {[%clk 0:00:12]} 57. Bg5 {[%clk 0:00:12]}  b3 {[%clk 0:00:13]} 58. Bh4 {[%clk 0:00:12]}  b2 {[%clk 0:00:13]} 59. Kc2 {[%clk 0:00:12]}  Kc4 {[%clk 0:00:11]} 60. Be1 {[%clk 0:00:12]}  Bd4 {[%clk 0:00:10]} 61. Bh4 {[%clk 0:00:12]}  Bc3 {[%clk 0:00:09]} 62. Kb1 {[%clk 0:00:11]}  e2 {[%clk 0:00:10]} 63. Bf2 {[%clk 0:00:11]}  e1=Q+ {[%clk 0:00:10]} 64. Bxe1 {[%clk 0:00:11]}  Bxe1 {[%clk 0:00:11]} 65. Kxb2 {[%clk 0:00:12]}  Kd3 {[%clk 0:00:11]} 66. Kc1 {[%clk 0:00:13]}  Ke3 {[%clk 0:00:11]} 67. Kc2 {[%clk 0:00:13]}  Kxf3 {[%clk 0:00:11]} 0-1


[Site "https://www.chess.com"]